Workbook

Sheet utilisateur Vierge
A1: DATE | B1: PRENOM | C1: PIECE | D1: DESIGNATION | E1: LOT | F1: HEURE debut | G1: heure fin | H1: Nbre de pièces finies | I1: temps de travail en secondes | J1: + 25% temps | K1: temps de travail en minutes | L1: Nbre de boites/pces pour 15 minutes | M1: Nbre de boites/pces à l'heure
D2: =IF(C2="","",VLOOKUP(C2,TabArticles[],2,FALSE)) ->  | I2: =IF(C2="","",VLOOKUP(C2,TabArticles[],3,FALSE)) ->  | J2: =IF(C2="","",VLOOKUP(C2,TabArticles[],4,FALSE)) ->  | K2: =IF(C2="","",VLOOKUP(C2,TabArticles[],5,FALSE)) ->  | L2: =IF(C2="","",VLOOKUP(C2,TabArticles[],6,FALSE)) ->  | M2: =IF(C2="","",VLOOKUP(C2,TabArticles[],7,FALSE)) -> 

Sheet choix utilisateur
E7: Utilisateur_5

Sheet articles
M5: Liste Utilisateurs
C6: Code article | D6: Désignation | E6: temps de travail en secondes | F6: + 25% temps | G6: temps de travail en minutes | H6: Nbre de boites/pces pour 15 minutes | I6: Nbre de boites/pces à l'heure | J6: minutes | M6: Utilisateur_1
C7: Maintenance autres sections | D7: Maintenance autres sections | E7: 0 | F7: =+E7+E7*25/100 -> 0 | G7: =+F7/60 -> 0 | H7: =IFERROR($J$7/G7,0) -> 0 | I7: =ROUNDUP(+H7*4,0) -> 0 | J7: 15 | M7: Utilisateur_2
C8: Mise en ordre locaux | D8: Mise en ordre locaux | E8: 0 | F8: 0 | G8: 0 | H8: =IFERROR($J$7/G8,0) -> 0 | I8: 0 | M8: Utilisateur_3
C9: Filmage palettes | D9: Filmage palettes | E9: 0 | F9: 0 | G9: 0 | H9: 0 | I9: 0 | M9: Utilisateur_4
C10: Déchargement | D10: déchargement | E10: 0 | F10: 0 | G10: 0 | H10: 0 | I10: 0 | M10: Utilisateur_5
C11: nettoyage | D11: nettoyage | E11: 0 | F11: 0 | G11: 0 | H11: 0 | I11: 0 | M11: Utilisateur_6
C12: repas | D12: repas | E12: 0 | F12: 0 | G12: 0 | H12: 0 | I12: 0 | M12: Utilisateur_7
C13: 1 | D13: Alteximex Recharges potagers (1 boite) | E13: 240 | F13: 300 | G13: 5 | H13: 3 | I13: 12 | M13: Utilisateur_8
C14: 2 | D14: Grando Grillages noirs (1 pièce) | E14: 44.8 | F14: 56 | G14: 0.9333333333 | H14: 16.07142857 | I14: 65 | M14: Utilisateur_9
C15: 3 | D15: Voltis : Fiches Voltis 2 montages ( 1 pièce ) | E15: 568 | F15: 710 | G15: 11.83333333 | H15: 1.267605634 | I15: 6 | M15: Utilisateur_10
C16: 4 | D16: Voltis : Fiches voltis avec ajout interrupteur | E16: 96 | F16: 120 | G16: 2 | H16: 7.5 | I16: 30
C17: 5 | D17: Euroclovis : Pliage tee-shirt | E17: 75 | F17: 93.75 | G17: 1.5625 | H17: 9.6 | I17: 39
C18: 6 | D18: Alteximex : Potagers (pots) | E18: 115 | F18: 143.75 | G18: 2.395833333 | H18: 6.260869565 | I18: 26
C19: 7 | D19: provera roayl propolis chgt etui 2 pces | E19: 24.3 | F19: 30.375 | G19: 0.50625 | H19: 29.62962963 | I19: 119
C20: 8 | D20: provera flexosil fort (etq s/ pots) | E20: 23.8 | F20: 29.75 | G20: 0.4958333333 | H20: 30.25210084 | I20: 122
C21: 9 | D21: provera creme chauffante (petits pots) | E21: 21.5 | F21: 26.875 | G21: 0.4479166667 | H21: 33.48837209 | I21: 134
C22: 10 | D22: provera biaes de fruits | E22: 42 | F22: 52.5 | G22: 0.875 | H22: 17.14285714 | I22: 69
C23: 11 | D23: Display DP Cystite (rose / - décorticage) | E23: 30.6 | F23: 38.25 | G23: 0.6375 | H23: 23.52941176 | I23: 95
C24: 11-01 | D24: Display DP Cystite (rose / - montage socle) | E24: 51.1 | F24: 63.875 | G24: 1.064583333 | H24: 14.09001957 | I24: 57
C25: 11-02 | D25: Display DP Cystite (rose / - collage fronton) | E25: 10.8 | F25: 13.5 | G25: 0.225 | H25: 66.66666667 | I25: 267
C26: 11-03 | D26: Display DP Cystite (rose / - décorticage intérieur) | E26: 8.52 | F26: 10.65 | G26: 0.1775 | H26: 84.50704225 | I26: 339
C27: 11-04 | D27: Display DP Cystite (rose / - mise en boite) | E27: 39.87 | F27: 49.8375 | G27: 0.830625 | H27: 18.05869074 | I27: 73
C28: 12 | D28: Grando languettes blanches mousse BT6060,089 | E28: 165 | F28: 206.25 | G28: 3.4375 | H28: 4.363636364 | I28: 18
C29: 13 | D29: Grando AP-AC-R326-A-1 adhésivage 2 dble face | E29: 22.25 | F29: 27.8125 | G29: 0.4635416667 | H29: 32.35955056 | I29: 130
C30: 14 | D30: Grando AP-AC-R327-A-1 adhésivage 1 dble face | E30: 17.05 | F30: 21.3125 | G30: 0.3552083333 | H30: 42.228739 | I30: 169
C31: 15 | D31: Grando AP-ST-DISQUE filmage chaud 8 pces | E31: 45 | F31: 56.25 | G31: 0.9375 | H31: 16 | I31: 64
C32: 16 | D32: Grando AP-COLCRCK289X75 collage 3 pces | E32: 110.5 | F32: 138.125 | G32: 2.302083333 | H32: 6.515837104 | I32: 27
C33: 17 | D33: Meno 211241 - ferrures lit 10x2 pces + soudure+sac fourni apn | E33: 62.4 | F33: 78 | G33: 1.3 | H33: 11.53846154 | I33: 47
C34: 18 | D34: Meno 393576 - trolley électricien 86 éléments | F34: 0 | G34: 0 | H34: 0 | I34: 0
C35: 19 | D35: Alteximex etiquette simple | E35: 18.23 | F35: 22.7875 | G35: 0.3797916667 | H35: 39.49533736 | I35: 158
C36: 20 | D36: DP Sediplus sleep (Décorticage) | E36: 15.93 | F36: 19.9125 | G36: 0.331875 | H36: 45.19774011 | I36: 181
C37: 20-01 | D37: DP Sediplus sleep (Montage petit socle) | E37: 79.25 | F37: 99.0625 | G37: 1.651041667 | H37: 9.085173502 | I37: 37
C38: 20-02 | D38: DP Sediplus sleep (Montage grand socle) | E38: 134 | F38: 167.5 | G38: 2.791666667 | H38: 5.373134328 | I38: 22
C39: 20-03 | D39: DP Sediplus sleep (collage pancarte) | E39: 30 | F39: 37.5 | G39: 0.625 | H39: 24 | I39: 96
C40: 20-04 | D40: DP Sediplus sleep (montage) | E40: 81.25 | F40: 101.5625 | G40: 1.692708333 | H40: 8.861538462 | I40: 36
C41: 20-05 | D41: DP Sediplus sleep (Mise en boite) | E41: 43.75 | F41: 54.6875 | G41: 0.9114583333 | H41: 16.45714286 | I41: 66
C42: 20-06 | D42: DP Sediplus sleep (collage corps display) | E42: 60 | F42: 75 | G42: 1.25 | H42: 12 | I42: 48
C43: 22 | D43: Grando : AP-ADHESIV-2550-A-1 adhésivage 1 dble face précis | E43: 32.5 | F43: 40.625 | G43: 0.6770833333 | H43: 22.15384615 | I43: 89
C44: 23 | D44: Baillieul : cystiphane mise 1 plaquette ds etui | E44: 21.62 | F44: 27.025 | G44: 0.4504166667 | H44: 33.30249769 | I44: 134
C45: 24 | D45: Grando : Décorticage mousses blancs 6 intérieurs | E45: 22.5 | F45: 28.125 | G45: 0.46875 | H45: 32 | I45: 128

Sheet Commandes
A1: PIECES | B1: DESIGNATION | C1: N° CDE | D1: Quantite | E1: 2019-01-24 | F1: 2019-01-25 | G1: 2019-01-25
A2: 1 | B2: =IF(A2="","",VLOOKUP(A2,TabArticles[],2,FALSE)) -> Alteximex Recharges potagers (1 boite) | C2: 1234 | D2: 1000 | E2: 100 | F2: 100 | G2: 50
A3: 11-03 | B3: =IF(A3="","",VLOOKUP(A3,TabArticles[],2,FALSE)) -> Display DP Cystite (rose / - décorticage intérieur) | C3: 5678 | D3: 3000
A4: 5 | B4: =IF(A4="","",VLOOKUP(A4,TabArticles[],2,FALSE)) -> Euroclovis : Pliage tee-shirt | C4: 91011 | D4: 1000
A5: 16 | B5: =IF(A5="","",VLOOKUP(A5,TabArticles[],2,FALSE)) -> Grando AP-COLCRCK289X75 collage 3 pces | C5: 121314 | D5: 5800 | F5: utilisteur 1 | G5: utilisateur 2
A6: 18 | B6: =IF(A6="","",VLOOKUP(A6,TabArticles[],2,FALSE)) -> Meno 393576 - trolley électricien 86 éléments | C6: 151617 | D6: 20
A7: 6 | B7: =IF(A7="","",VLOOKUP(A7,TabArticles[],2,FALSE)) -> Alteximex : Potagers (pots) | C7: 181920 | D7: 542
A8: 10 | B8: =IF(A8="","",VLOOKUP(A8,TabArticles[],2,FALSE)) -> provera biaes de fruits | C8: 212223 | D8: 10500

Sheet Utilisateur_1
A1: DATE | B1: PRENOM | C1: PIECE | D1: DESIGNATION | E1: LOT | F1: HEURE debut | G1: heure fin | H1: Nbre de pièces finies | I1: temps de travail en secondes | J1: + 25% temps | K1: temps de travail en minutes | L1: Nbre de boites/pces pour 15 minutes | M1: Nbre de boites/pces à l'heure
A2: 2019-01-24 | B2: utilisateur 1 | C2: 1 | D2: =IF(C2="","",VLOOKUP(C2,TabArticles[],2,FALSE)) -> Alteximex Recharges potagers (1 boite) | E2: 1234 | F2: 12:18:04 | G2: 12:20:28 | H2: 100 | I2: =IF(C2="","",VLOOKUP(C2,TabArticles[],3,FALSE)) -> 240 | J2: =IF(C2="","",VLOOKUP(C2,TabArticles[],4,FALSE)) -> 300 | K2: =IF(C2="","",VLOOKUP(C2,TabArticles[],5,FALSE)) -> 5 | L2: =IF(C2="","",VLOOKUP(C2,TabArticles[],6,FALSE)) -> 3 | M2: =IF(C2="","",VLOOKUP(C2,TabArticles[],7,FALSE)) -> 12
A3: 2019-01-24 | B3: utilisateur 1 | C3: 11-03 | D3: =IF(C3="","",VLOOKUP(C3,TabArticles[],2,FALSE)) -> Display DP Cystite (rose / - décorticage intérieur) | E3: 5678 | F3: 12:20:28 | G3: 12:22:11 | H3: 23 | I3: =IF(C3="","",VLOOKUP(C3,TabArticles[],3,FALSE)) -> 8.52 | J3: =IF(C3="","",VLOOKUP(C3,TabArticles[],4,FALSE)) -> 10.65 | K3: =IF(C3="","",VLOOKUP(C3,TabArticles[],5,FALSE)) -> 0.1775 | L3: =IF(C3="","",VLOOKUP(C3,TabArticles[],6,FALSE)) -> 84.50704225 | M3: =IF(C3="","",VLOOKUP(C3,TabArticles[],7,FALSE)) -> 339
A4: 2019-01-24 | B4: utilisateur 1 | C4: 5 | D4: =IF(C4="","",VLOOKUP(C4,TabArticles[],2,FALSE)) -> Euroclovis : Pliage tee-shirt | E4: 91011 | F4: 12:22:11 | G4: 12:22:33 | H4: 250 | I4: =IF(C4="","",VLOOKUP(C4,TabArticles[],3,FALSE)) -> 75 | J4: =IF(C4="","",VLOOKUP(C4,TabArticles[],4,FALSE)) -> 93.75 | K4: =IF(C4="","",VLOOKUP(C4,TabArticles[],5,FALSE)) -> 1.5625 | L4: =IF(C4="","",VLOOKUP(C4,TabArticles[],6,FALSE)) -> 9.6 | M4: =IF(C4="","",VLOOKUP(C4,TabArticles[],7,FALSE)) -> 39
A5: 2019-01-24 | B5: utilisateur 1 | C5: 16 | D5: =IF(C5="","",VLOOKUP(C5,TabArticles[],2,FALSE)) -> Grando AP-COLCRCK289X75 collage 3 pces | E5: 121314 | F5: 12:22:33 | G5: 12:22:58 | H5: 520 | I5: =IF(C5="","",VLOOKUP(C5,TabArticles[],3,FALSE)) -> 110.5 | J5: =IF(C5="","",VLOOKUP(C5,TabArticles[],4,FALSE)) -> 138.125 | K5: =IF(C5="","",VLOOKUP(C5,TabArticles[],5,FALSE)) -> 2.302083333 | L5: =IF(C5="","",VLOOKUP(C5,TabArticles[],6,FALSE)) -> 6.515837104 | M5: =IF(C5="","",VLOOKUP(C5,TabArticles[],7,FALSE)) -> 27
A6: 2019-01-24 | B6: utilisateur 1 | C6: 18 | D6: =IF(C6="","",VLOOKUP(C6,TabArticles[],2,FALSE)) -> Meno 393576 - trolley électricien 86 éléments | E6: 151617 | F6: 12:22:58 | G6: 12:23:27 | H6: 2 | I6: =IF(C6="","",VLOOKUP(C6,TabArticles[],3,FALSE)) -> 0 | J6: =IF(C6="","",VLOOKUP(C6,TabArticles[],4,FALSE)) -> 0 | K6: =IF(C6="","",VLOOKUP(C6,TabArticles[],5,FALSE)) -> 0 | L6: =IF(C6="","",VLOOKUP(C6,TabArticles[],6,FALSE)) -> 0 | M6: =IF(C6="","",VLOOKUP(C6,TabArticles[],7,FALSE)) -> 0
A7: 2019-01-24 | B7: utilisateur 1 | C7: 6 | D7: =IF(C7="","",VLOOKUP(C7,TabArticles[],2,FALSE)) -> Alteximex : Potagers (pots) | E7: 181920 | F7: 12:23:27 | G7: 12:23:51 | H7: 125 | I7: =IF(C7="","",VLOOKUP(C7,TabArticles[],3,FALSE)) -> 115 | J7: =IF(C7="","",VLOOKUP(C7,TabArticles[],4,FALSE)) -> 143.75 | K7: =IF(C7="","",VLOOKUP(C7,TabArticles[],5,FALSE)) -> 2.395833333 | L7: =IF(C7="","",VLOOKUP(C7,TabArticles[],6,FALSE)) -> 6.260869565 | M7: =IF(C7="","",VLOOKUP(C7,TabArticles[],7,FALSE)) -> 26
A8: 2019-01-24 | B8: utilisateur 1 | C8: 10 | D8: =IF(C8="","",VLOOKUP(C8,TabArticles[],2,FALSE)) -> provera biaes de fruits | E8: 212223 | G8: 12:24:17 | H8: 210 | I8: =IF(C8="","",VLOOKUP(C8,TabArticles[],3,FALSE)) -> 42 | J8: =IF(C8="","",VLOOKUP(C8,TabArticles[],4,FALSE)) -> 52.5 | K8: =IF(C8="","",VLOOKUP(C8,TabArticles[],5,FALSE)) -> 0.875 | L8: =IF(C8="","",VLOOKUP(C8,TabArticles[],6,FALSE)) -> 17.14285714 | M8: =IF(C8="","",VLOOKUP(C8,TabArticles[],7,FALSE)) -> 69
A9: 2019-01-25 | B9: utilisateur 1 | C9: 1 | D9: =IF(C9="","",VLOOKUP(C9,TabArticles[],2,FALSE)) -> Alteximex Recharges potagers (1 boite) | E9: 1234 | G9: 13:55:22 | H9: 100 | I9: =IF(C9="","",VLOOKUP(C9,TabArticles[],3,FALSE)) -> 240 | J9: =IF(C9="","",VLOOKUP(C9,TabArticles[],4,FALSE)) -> 300 | K9: =IF(C9="","",VLOOKUP(C9,TabArticles[],5,FALSE)) -> 5 | L9: =IF(C9="","",VLOOKUP(C9,TabArticles[],6,FALSE)) -> 3 | M9: =IF(C9="","",VLOOKUP(C9,TabArticles[],7,FALSE)) -> 12
A10: 2019-01-25 | B10: utilisateur 1 | D10: =IF(C10="","",VLOOKUP(C10,TabArticles[],2,FALSE)) ->  | F10: 13:55:22 | G10: 22:36:55 | H10: 10 | I10: =IF(C10="","",VLOOKUP(C10,TabArticles[],3,FALSE)) ->  | J10: =IF(C10="","",VLOOKUP(C10,TabArticles[],4,FALSE)) ->  | K10: =IF(C10="","",VLOOKUP(C10,TabArticles[],5,FALSE)) ->  | L10: =IF(C10="","",VLOOKUP(C10,TabArticles[],6,FALSE)) ->  | M10: =IF(C10="","",VLOOKUP(C10,TabArticles[],7,FALSE)) -> 
A11: 2019-01-24 | B11: Utilisateur_1 | C11: Maintenance autres sections | D11: =IF(C11="","",VLOOKUP(C11,TabArticles[],2,FALSE)) -> Maintenance autres sections | E11: 321 | F11: 22:36:43 | G11: 22:45:16 | H11: 10 | I11: =IF(C11="","",VLOOKUP(C11,TabArticles[],3,FALSE)) -> 0 | J11: =IF(C11="","",VLOOKUP(C11,TabArticles[],4,FALSE)) -> 0 | K11: =IF(C11="","",VLOOKUP(C11,TabArticles[],5,FALSE)) -> 0 | L11: =IF(C11="","",VLOOKUP(C11,TabArticles[],6,FALSE)) -> 0 | M11: =IF(C11="","",VLOOKUP(C11,TabArticles[],7,FALSE)) -> 0
A12: 2019-01-24 | D12: =IF(C12="","",VLOOKUP(C12,TabArticles[],2,FALSE)) ->  | F12: 22:45:07 | G12: 22:46:35 | I12: =IF(C12="","",VLOOKUP(C12,TabArticles[],3,FALSE)) ->  | J12: =IF(C12="","",VLOOKUP(C12,TabArticles[],4,FALSE)) ->  | K12: =IF(C12="","",VLOOKUP(C12,TabArticles[],5,FALSE)) ->  | L12: =IF(C12="","",VLOOKUP(C12,TabArticles[],6,FALSE)) ->  | M12: =IF(C12="","",VLOOKUP(C12,TabArticles[],7,FALSE)) -> 
A13: 2019-01-24 | B13: Utilisateur_1 | C13: Mise en ordre locaux | D13: =IF(C13="","",VLOOKUP(C13,TabArticles[],2,FALSE)) -> Mise en ordre locaux | E13: 123 | F13: 22:46:35 | G13: 22:47:56 | H13: 10 | I13: =IF(C13="","",VLOOKUP(C13,TabArticles[],3,FALSE)) -> 0 | J13: =IF(C13="","",VLOOKUP(C13,TabArticles[],4,FALSE)) -> 0 | K13: =IF(C13="","",VLOOKUP(C13,TabArticles[],5,FALSE)) -> 0 | L13: =IF(C13="","",VLOOKUP(C13,TabArticles[],6,FALSE)) -> 0 | M13: =IF(C13="","",VLOOKUP(C13,TabArticles[],7,FALSE)) -> 0
A14: 2019-01-24 | B14: Utilisateur_1 | C14: Maintenance autres sections | D14: =IF(C14="","",VLOOKUP(C14,TabArticles[],2,FALSE)) -> Maintenance autres sections | E14: 155 | F14: 22:47:56 | G14: 22:59:20 | H14: 20 | I14: =IF(C14="","",VLOOKUP(C14,TabArticles[],3,FALSE)) -> 0 | J14: =IF(C14="","",VLOOKUP(C14,TabArticles[],4,FALSE)) -> 0 | K14: =IF(C14="","",VLOOKUP(C14,TabArticles[],5,FALSE)) -> 0 | L14: =IF(C14="","",VLOOKUP(C14,TabArticles[],6,FALSE)) -> 0 | M14: =IF(C14="","",VLOOKUP(C14,TabArticles[],7,FALSE)) -> 0
A15: 2019-01-24 | B15: Utilisateur_1 | C15: Maintenance autres sections | D15: =IF(C15="","",VLOOKUP(C15,TabArticles[],2,FALSE)) -> Maintenance autres sections | E15: 321 | F15: 22:59:20 | G15: 23:03:50 | H15: 50 | I15: =IF(C15="","",VLOOKUP(C15,TabArticles[],3,FALSE)) -> 0 | J15: =IF(C15="","",VLOOKUP(C15,TabArticles[],4,FALSE)) -> 0 | K15: =IF(C15="","",VLOOKUP(C15,TabArticles[],5,FALSE)) -> 0 | L15: =IF(C15="","",VLOOKUP(C15,TabArticles[],6,FALSE)) -> 0 | M15: =IF(C15="","",VLOOKUP(C15,TabArticles[],7,FALSE)) -> 0
A16: 2019-01-24 | B16: Utilisateur_1 | C16: 1 | D16: =IF(C16="","",VLOOKUP(C16,TabArticles[],2,FALSE)) -> Alteximex Recharges potagers (1 boite) | E16: 2 | F16: 23:03:50 | G16: 23:05:06 | H16: 20 | I16: =IF(C16="","",VLOOKUP(C16,TabArticles[],3,FALSE)) -> 240 | J16: =IF(C16="","",VLOOKUP(C16,TabArticles[],4,FALSE)) -> 300 | K16: =IF(C16="","",VLOOKUP(C16,TabArticles[],5,FALSE)) -> 5 | L16: =IF(C16="","",VLOOKUP(C16,TabArticles[],6,FALSE)) -> 3 | M16: =IF(C16="","",VLOOKUP(C16,TabArticles[],7,FALSE)) -> 12
A17: 2019-01-24 | B17: Utilisateur_1 | C17: 2 | D17: =IF(C17="","",VLOOKUP(C17,TabArticles[],2,FALSE)) -> Grando Grillages noirs (1 pièce) | E17: 2 | F17: 23:05:06 | G17: 08:58:29 | H17: 2 | I17: =IF(C17="","",VLOOKUP(C17,TabArticles[],3,FALSE)) -> 44.8 | J17: =IF(C17="","",VLOOKUP(C17,TabArticles[],4,FALSE)) -> 56 | K17: =IF(C17="","",VLOOKUP(C17,TabArticles[],5,FALSE)) -> 0.9333333333 | L17: =IF(C17="","",VLOOKUP(C17,TabArticles[],6,FALSE)) -> 16.07142857 | M17: =IF(C17="","",VLOOKUP(C17,TabArticles[],7,FALSE)) -> 65
A18: 2019-01-25 | B18: Utilisateur_1 | C18: 1 | D18: =IF(C18="","",VLOOKUP(C18,TabArticles[],2,FALSE)) -> Alteximex Recharges potagers (1 boite) | E18: 1234 | F18: 08:58:29 | G18: 08:58:52 | H18: 12 | I18: =IF(C18="","",VLOOKUP(C18,TabArticles[],3,FALSE)) -> 240 | J18: =IF(C18="","",VLOOKUP(C18,TabArticles[],4,FALSE)) -> 300 | K18: =IF(C18="","",VLOOKUP(C18,TabArticles[],5,FALSE)) -> 5 | L18: =IF(C18="","",VLOOKUP(C18,TabArticles[],6,FALSE)) -> 3 | M18: =IF(C18="","",VLOOKUP(C18,TabArticles[],7,FALSE)) -> 12
A19: 2019-01-25 | B19: Utilisateur_1 | D19: =IF(C19="","",VLOOKUP(C19,TabArticles[],2,FALSE)) ->  | F19: 08:58:52 | G19: 08:59:19 | I19: =IF(C19="","",VLOOKUP(C19,TabArticles[],3,FALSE)) ->  | J19: =IF(C19="","",VLOOKUP(C19,TabArticles[],4,FALSE)) ->  | K19: =IF(C19="","",VLOOKUP(C19,TabArticles[],5,FALSE)) ->  | L19: =IF(C19="","",VLOOKUP(C19,TabArticles[],6,FALSE)) ->  | M19: =IF(C19="","",VLOOKUP(C19,TabArticles[],7,FALSE)) -> 
A20: 2019-01-25 | B20: Utilisateur_1 | C20: 1 | D20: =IF(C20="","",VLOOKUP(C20,TabArticles[],2,FALSE)) -> Alteximex Recharges potagers (1 boite) | E20: 1234 | F20: 08:59:19 | G20: 09:01:22 | H20: 14 | I20: =IF(C20="","",VLOOKUP(C20,TabArticles[],3,FALSE)) -> 240 | J20: =IF(C20="","",VLOOKUP(C20,TabArticles[],4,FALSE)) -> 300 | K20: =IF(C20="","",VLOOKUP(C20,TabArticles[],5,FALSE)) -> 5 | L20: =IF(C20="","",VLOOKUP(C20,TabArticles[],6,FALSE)) -> 3 | M20: =IF(C20="","",VLOOKUP(C20,TabArticles[],7,FALSE)) -> 12
A21: 2019-01-25 | B21: Utilisateur_1 | C21: 1 | D21: =IF(C21="","",VLOOKUP(C21,TabArticles[],2,FALSE)) -> Alteximex Recharges potagers (1 boite) | E21: 1234 | F21: 09:01:22 | G21: 09:09:34 | H21: 14 | I21: =IF(C21="","",VLOOKUP(C21,TabArticles[],3,FALSE)) -> 240 | J21: =IF(C21="","",VLOOKUP(C21,TabArticles[],4,FALSE)) -> 300 | K21: =IF(C21="","",VLOOKUP(C21,TabArticles[],5,FALSE)) -> 5 | L21: =IF(C21="","",VLOOKUP(C21,TabArticles[],6,FALSE)) -> 3 | M21: =IF(C21="","",VLOOKUP(C21,TabArticles[],7,FALSE)) -> 12
A22: 2019-01-25 | B22: Utilisateur_1 | C22: 1 | D22: =IF(C22="","",VLOOKUP(C22,TabArticles[],2,FALSE)) -> Alteximex Recharges potagers (1 boite) | E22: 1234 | F22: 09:09:34 | G22: 09:10:49 | H22: 12 | I22: =IF(C22="","",VLOOKUP(C22,TabArticles[],3,FALSE)) -> 240 | J22: =IF(C22="","",VLOOKUP(C22,TabArticles[],4,FALSE)) -> 300 | K22: =IF(C22="","",VLOOKUP(C22,TabArticles[],5,FALSE)) -> 5 | L22: =IF(C22="","",VLOOKUP(C22,TabArticles[],6,FALSE)) -> 3 | M22: =IF(C22="","",VLOOKUP(C22,TabArticles[],7,FALSE)) -> 12
A23: 2019-01-25 | B23: Utilisateur_2 | D23: =IF(C23="","",VLOOKUP(C23,TabArticles[],2,FALSE)) ->  | F23: 09:10:49 | I23: =IF(C23="","",VLOOKUP(C23,TabArticles[],3,FALSE)) ->  | J23: =IF(C23="","",VLOOKUP(C23,TabArticles[],4,FALSE)) ->  | K23: =IF(C23="","",VLOOKUP(C23,TabArticles[],5,FALSE)) ->  | L23: =IF(C23="","",VLOOKUP(C23,TabArticles[],6,FALSE)) ->  | M23: =IF(C23="","",VLOOKUP(C23,TabArticles[],7,FALSE)) -> 

Sheet Utilisateur_2
A1: DATE | B1: PRENOM | C1: PIECE | D1: DESIGNATION | E1: LOT | F1: HEURE debut | G1: heure fin | H1: Nbre de pièces finies | I1: temps de travail en secondes | J1: + 25% temps | K1: temps de travail en minutes | L1: Nbre de boites/pces pour 15 minutes | M1: Nbre de boites/pces à l'heure
A2: 2019-01-25 | B2: utilisateur 1 | C2: 1 | D2: =IF(C2="","",VLOOKUP(C2,TabArticles[],2,FALSE)) -> Alteximex Recharges potagers (1 boite) | E2: 1234 | F2: 12:24:17 | G2: 14:32:59 | H2: 50 | I2: =IF(C2="","",VLOOKUP(C2,TabArticles[],3,FALSE)) -> 240 | J2: =IF(C2="","",VLOOKUP(C2,TabArticles[],4,FALSE)) -> 300 | K2: =IF(C2="","",VLOOKUP(C2,TabArticles[],5,FALSE)) -> 5 | L2: =IF(C2="","",VLOOKUP(C2,TabArticles[],6,FALSE)) -> 3 | M2: =IF(C2="","",VLOOKUP(C2,TabArticles[],7,FALSE)) -> 12
A3: 2019-01-24 | B3: utilisateur 2 | D3: =IF(C3="","",VLOOKUP(C3,TabArticles[],2,FALSE)) ->  | F3: 14:32:59 | G3: 14:33:48 | I3: =IF(C3="","",VLOOKUP(C3,TabArticles[],3,FALSE)) ->  | J3: =IF(C3="","",VLOOKUP(C3,TabArticles[],4,FALSE)) ->  | K3: =IF(C3="","",VLOOKUP(C3,TabArticles[],5,FALSE)) ->  | L3: =IF(C3="","",VLOOKUP(C3,TabArticles[],6,FALSE)) ->  | M3: =IF(C3="","",VLOOKUP(C3,TabArticles[],7,FALSE)) -> 
A4: 2019-01-24 | B4: utilisateur 2 | D4: =IF(C4="","",VLOOKUP(C4,TabArticles[],2,FALSE)) ->  | F4: 14:33:48 | G4: 14:33:59 | I4: =IF(C4="","",VLOOKUP(C4,TabArticles[],3,FALSE)) ->  | J4: =IF(C4="","",VLOOKUP(C4,TabArticles[],4,FALSE)) ->  | K4: =IF(C4="","",VLOOKUP(C4,TabArticles[],5,FALSE)) ->  | L4: =IF(C4="","",VLOOKUP(C4,TabArticles[],6,FALSE)) ->  | M4: =IF(C4="","",VLOOKUP(C4,TabArticles[],7,FALSE)) -> 
A5: 2019-01-24 | B5: utilisateur 2 | D5: =IF(C5="","",VLOOKUP(C5,TabArticles[],2,FALSE)) ->  | F5: 14:33:59 | G5: 18:47:41 | I5: =IF(C5="","",VLOOKUP(C5,TabArticles[],3,FALSE)) ->  | J5: =IF(C5="","",VLOOKUP(C5,TabArticles[],4,FALSE)) ->  | K5: =IF(C5="","",VLOOKUP(C5,TabArticles[],5,FALSE)) ->  | L5: =IF(C5="","",VLOOKUP(C5,TabArticles[],6,FALSE)) ->  | M5: =IF(C5="","",VLOOKUP(C5,TabArticles[],7,FALSE)) -> 
A6: 2019-01-24 | B6: utilisateur 2 | D6: =IF(C6="","",VLOOKUP(C6,TabArticles[],2,FALSE)) ->  | F6: 18:47:41 | G6: 23:01:00 | I6: =IF(C6="","",VLOOKUP(C6,TabArticles[],3,FALSE)) ->  | J6: =IF(C6="","",VLOOKUP(C6,TabArticles[],4,FALSE)) ->  | K6: =IF(C6="","",VLOOKUP(C6,TabArticles[],5,FALSE)) ->  | L6: =IF(C6="","",VLOOKUP(C6,TabArticles[],6,FALSE)) ->  | M6: =IF(C6="","",VLOOKUP(C6,TabArticles[],7,FALSE)) -> 
A7: 2019-01-24 | B7: Utilisateur_2 | C7: 1 | D7: =IF(C7="","",VLOOKUP(C7,TabArticles[],2,FALSE)) -> Alteximex Recharges potagers (1 boite) | E7: 10 | F7: 23:01:00 | G7: 09:00:55 | H7: 20 | I7: =IF(C7="","",VLOOKUP(C7,TabArticles[],3,FALSE)) -> 240 | J7: =IF(C7="","",VLOOKUP(C7,TabArticles[],4,FALSE)) -> 300 | K7: =IF(C7="","",VLOOKUP(C7,TabArticles[],5,FALSE)) -> 5 | L7: =IF(C7="","",VLOOKUP(C7,TabArticles[],6,FALSE)) -> 3 | M7: =IF(C7="","",VLOOKUP(C7,TabArticles[],7,FALSE)) -> 12
A8: 2019-01-25 | B8: Utilisateur_2 | C8: 1 | D8: =IF(C8="","",VLOOKUP(C8,TabArticles[],2,FALSE)) -> Alteximex Recharges potagers (1 boite) | E8: 1234 | F8: 09:00:55 | G8: 09:09:56 | H8: 12 | I8: =IF(C8="","",VLOOKUP(C8,TabArticles[],3,FALSE)) -> 240 | J8: =IF(C8="","",VLOOKUP(C8,TabArticles[],4,FALSE)) -> 300 | K8: =IF(C8="","",VLOOKUP(C8,TabArticles[],5,FALSE)) -> 5 | L8: =IF(C8="","",VLOOKUP(C8,TabArticles[],6,FALSE)) -> 3 | M8: =IF(C8="","",VLOOKUP(C8,TabArticles[],7,FALSE)) -> 12
A9: 2019-01-25 | B9: Utilisateur_2 | C9: 1 | D9: =IF(C9="","",VLOOKUP(C9,TabArticles[],2,FALSE)) -> Alteximex Recharges potagers (1 boite) | E9: 1234 | F9: 09:09:56 | G9: 09:10:31 | H9: 12 | I9: =IF(C9="","",VLOOKUP(C9,TabArticles[],3,FALSE)) -> 240 | J9: =IF(C9="","",VLOOKUP(C9,TabArticles[],4,FALSE)) -> 300 | K9: =IF(C9="","",VLOOKUP(C9,TabArticles[],5,FALSE)) -> 5 | L9: =IF(C9="","",VLOOKUP(C9,TabArticles[],6,FALSE)) -> 3 | M9: =IF(C9="","",VLOOKUP(C9,TabArticles[],7,FALSE)) -> 12
A10: 2019-01-25 | B10: Utilisateur_2 | D10: =IF(C10="","",VLOOKUP(C10,TabArticles[],2,FALSE)) ->  | F10: 09:10:31 | I10: =IF(C10="","",VLOOKUP(C10,TabArticles[],3,FALSE)) ->  | J10: =IF(C10="","",VLOOKUP(C10,TabArticles[],4,FALSE)) ->  | K10: =IF(C10="","",VLOOKUP(C10,TabArticles[],5,FALSE)) ->  | L10: =IF(C10="","",VLOOKUP(C10,TabArticles[],6,FALSE)) ->  | M10: =IF(C10="","",VLOOKUP(C10,TabArticles[],7,FALSE)) -> 

Sheet Utilisateur_3
A1: DATE | B1: PRENOM | C1: PIECE | D1: DESIGNATION | E1: LOT | F1: HEURE debut | G1: heure fin | H1: Nbre de pièces finies | I1: temps de travail en secondes | J1: + 25% temps | K1: temps de travail en minutes | L1: Nbre de boites/pces pour 15 minutes | M1: Nbre de boites/pces à l'heure
A2: 2019-01-23 | B2: utilisateur 3 | D2: =IF(C2="","",VLOOKUP(C2,TabArticles[],2,FALSE)) ->  | F2: 21:39:38 | G2: 18:42:07 | I2: =IF(C2="","",VLOOKUP(C2,TabArticles[],3,FALSE)) ->  | J2: =IF(C2="","",VLOOKUP(C2,TabArticles[],4,FALSE)) ->  | K2: =IF(C2="","",VLOOKUP(C2,TabArticles[],5,FALSE)) ->  | L2: =IF(C2="","",VLOOKUP(C2,TabArticles[],6,FALSE)) ->  | M2: =IF(C2="","",VLOOKUP(C2,TabArticles[],7,FALSE)) -> 
A3: 2019-01-24 | B3: utilisateur 3 | C3: 2 | D3: =IF(C3="","",VLOOKUP(C3,TabArticles[],2,FALSE)) -> Grando Grillages noirs (1 pièce) | E3: 2 | F3: 18:42:07 | G3: 22:31:05 | H3: 10 | I3: =IF(C3="","",VLOOKUP(C3,TabArticles[],3,FALSE)) -> 44.8 | J3: =IF(C3="","",VLOOKUP(C3,TabArticles[],4,FALSE)) -> 56 | K3: =IF(C3="","",VLOOKUP(C3,TabArticles[],5,FALSE)) -> 0.9333333333 | L3: =IF(C3="","",VLOOKUP(C3,TabArticles[],6,FALSE)) -> 16.07142857 | M3: =IF(C3="","",VLOOKUP(C3,TabArticles[],7,FALSE)) -> 65
A4: 2019-01-24 | B4: Utilisateur_3 | D4: =IF(C4="","",VLOOKUP(C4,TabArticles[],2,FALSE)) ->  | F4: 22:30:50 | G4: 09:01:09 | I4: =IF(C4="","",VLOOKUP(C4,TabArticles[],3,FALSE)) ->  | J4: =IF(C4="","",VLOOKUP(C4,TabArticles[],4,FALSE)) ->  | K4: =IF(C4="","",VLOOKUP(C4,TabArticles[],5,FALSE)) ->  | L4: =IF(C4="","",VLOOKUP(C4,TabArticles[],6,FALSE)) ->  | M4: =IF(C4="","",VLOOKUP(C4,TabArticles[],7,FALSE)) -> 
A5: 2019-01-25 | B5: Utilisateur_3 | C5: 1 | D5: =IF(C5="","",VLOOKUP(C5,TabArticles[],2,FALSE)) -> Alteximex Recharges potagers (1 boite) | E5: 1234 | F5: 09:01:09 | H5: 12 | I5: =IF(C5="","",VLOOKUP(C5,TabArticles[],3,FALSE)) -> 240 | J5: =IF(C5="","",VLOOKUP(C5,TabArticles[],4,FALSE)) -> 300 | K5: =IF(C5="","",VLOOKUP(C5,TabArticles[],5,FALSE)) -> 5 | L5: =IF(C5="","",VLOOKUP(C5,TabArticles[],6,FALSE)) -> 3 | M5: =IF(C5="","",VLOOKUP(C5,TabArticles[],7,FALSE)) -> 12

Sheet Utilisateur_4
A1: DATE | B1: PRENOM | C1: PIECE | D1: DESIGNATION | E1: LOT | F1: HEURE debut | G1: heure fin | H1: Nbre de pièces finies | I1: temps de travail en secondes | J1: + 25% temps | K1: temps de travail en minutes | L1: Nbre de boites/pces pour 15 minutes | M1: Nbre de boites/pces à l'heure
A2: 2019-01-24 | B2: utilisateur 4 | D2: =IF(C2="","",VLOOKUP(C2,TabArticles[],2,FALSE)) ->  | F2: 10:16:53 | I2: =IF(C2="","",VLOOKUP(C2,TabArticles[],3,FALSE)) ->  | J2: =IF(C2="","",VLOOKUP(C2,TabArticles[],4,FALSE)) ->  | K2: =IF(C2="","",VLOOKUP(C2,TabArticles[],5,FALSE)) ->  | L2: =IF(C2="","",VLOOKUP(C2,TabArticles[],6,FALSE)) ->  | M2: =IF(C2="","",VLOOKUP(C2,TabArticles[],7,FALSE)) -> 

Sheet Utilisateur_5
A1: DATE | B1: PRENOM | C1: PIECE | D1: DESIGNATION | E1: LOT | F1: HEURE debut | G1: heure fin | H1: Nbre de pièces finies | I1: temps de travail en secondes | J1: + 25% temps | K1: temps de travail en minutes | L1: Nbre de boites/pces pour 15 minutes | M1: Nbre de boites/pces à l'heure
A2: 2019-01-23 | B2: utilisateur 5 | D2: =IF(C2="","",VLOOKUP(C2,TabArticles[],2,FALSE)) ->  | F2: 21:40:28 | G2: 10:17:53 | I2: =IF(C2="","",VLOOKUP(C2,TabArticles[],3,FALSE)) ->  | J2: =IF(C2="","",VLOOKUP(C2,TabArticles[],4,FALSE)) ->  | K2: =IF(C2="","",VLOOKUP(C2,TabArticles[],5,FALSE)) ->  | L2: =IF(C2="","",VLOOKUP(C2,TabArticles[],6,FALSE)) ->  | M2: =IF(C2="","",VLOOKUP(C2,TabArticles[],7,FALSE)) -> 
A3: 2019-01-24 | B3: utilisateur 5 | D3: =IF(C3="","",VLOOKUP(C3,TabArticles[],2,FALSE)) ->  | F3: 10:17:53 | I3: =IF(C3="","",VLOOKUP(C3,TabArticles[],3,FALSE)) ->  | J3: =IF(C3="","",VLOOKUP(C3,TabArticles[],4,FALSE)) ->  | K3: =IF(C3="","",VLOOKUP(C3,TabArticles[],5,FALSE)) ->  | L3: =IF(C3="","",VLOOKUP(C3,TabArticles[],6,FALSE)) ->  | M3: =IF(C3="","",VLOOKUP(C3,TabArticles[],7,FALSE)) -> 

Sheet Utilisateur_6
A1: DATE | B1: PRENOM | C1: PIECE | D1: DESIGNATION | E1: LOT | F1: HEURE debut | G1: heure fin | H1: Nbre de pièces finies | I1: temps de travail en secondes | J1: + 25% temps | K1: temps de travail en minutes | L1: Nbre de boites/pces pour 15 minutes | M1: Nbre de boites/pces à l'heure
A2: 2019-01-23 | B2: utilisateur 6 | D2: =IF(C2="","",VLOOKUP(C2,TabArticles[],2,FALSE)) ->  | F2: 21:37:38 | G2: 08:25:56 | I2: =IF(C2="","",VLOOKUP(C2,TabArticles[],3,FALSE)) ->  | J2: =IF(C2="","",VLOOKUP(C2,TabArticles[],4,FALSE)) ->  | K2: =IF(C2="","",VLOOKUP(C2,TabArticles[],5,FALSE)) ->  | L2: =IF(C2="","",VLOOKUP(C2,TabArticles[],6,FALSE)) ->  | M2: =IF(C2="","",VLOOKUP(C2,TabArticles[],7,FALSE)) -> 
A3: 2019-01-24 | B3: utilisateur 6 | C3: 5 | D3: =IF(C3="","",VLOOKUP(C3,TabArticles[],2,FALSE)) -> Euroclovis : Pliage tee-shirt | E3: fxcg | F3: 08:25:56 | H3: 20 | I3: =IF(C3="","",VLOOKUP(C3,TabArticles[],3,FALSE)) -> 75 | J3: =IF(C3="","",VLOOKUP(C3,TabArticles[],4,FALSE)) -> 93.75 | K3: =IF(C3="","",VLOOKUP(C3,TabArticles[],5,FALSE)) -> 1.5625 | L3: =IF(C3="","",VLOOKUP(C3,TabArticles[],6,FALSE)) -> 9.6 | M3: =IF(C3="","",VLOOKUP(C3,TabArticles[],7,FALSE)) -> 39

Sheet Utilisateur_7
A1: DATE | B1: PRENOM | C1: PIECE | D1: DESIGNATION | E1: LOT | F1: HEURE debut | G1: heure fin | H1: Nbre de pièces finies | I1: temps de travail en secondes | J1: + 25% temps | K1: temps de travail en minutes | L1: Nbre de boites/pces pour 15 minutes | M1: Nbre de boites/pces à l'heure
A2: 2019-01-23 | B2: utilisateur 7 | D2: =IF(C2="","",VLOOKUP(C2,TabArticles[],2,FALSE)) ->  | F2: 21:40:57 | I2: =IF(C2="","",VLOOKUP(C2,TabArticles[],3,FALSE)) ->  | J2: =IF(C2="","",VLOOKUP(C2,TabArticles[],4,FALSE)) ->  | K2: =IF(C2="","",VLOOKUP(C2,TabArticles[],5,FALSE)) ->  | L2: =IF(C2="","",VLOOKUP(C2,TabArticles[],6,FALSE)) ->  | M2: =IF(C2="","",VLOOKUP(C2,TabArticles[],7,FALSE)) -> 

Sheet Utilisateur_8
A1: DATE | B1: PRENOM | C1: PIECE | D1: DESIGNATION | E1: LOT | F1: HEURE debut | G1: heure fin | H1: Nbre de pièces finies | I1: temps de travail en secondes | J1: + 25% temps | K1: temps de travail en minutes | L1: Nbre de boites/pces pour 15 minutes | M1: Nbre de boites/pces à l'heure
D2: =IF(C2="","",VLOOKUP(C2,TabArticles[],2,FALSE)) ->  | I2: =IF(C2="","",VLOOKUP(C2,TabArticles[],3,FALSE)) ->  | J2: =IF(C2="","",VLOOKUP(C2,TabArticles[],4,FALSE)) ->  | K2: =IF(C2="","",VLOOKUP(C2,TabArticles[],5,FALSE)) ->  | L2: =IF(C2="","",VLOOKUP(C2,TabArticles[],6,FALSE)) ->  | M2: =IF(C2="","",VLOOKUP(C2,TabArticles[],7,FALSE)) -> 

Sheet Utilisateur_9
A1: DATE | B1: PRENOM | C1: PIECE | D1: DESIGNATION | E1: LOT | F1: HEURE debut | G1: heure fin | H1: Nbre de pièces finies | I1: temps de travail en secondes | J1: + 25% temps | K1: temps de travail en minutes | L1: Nbre de boites/pces pour 15 minutes | M1: Nbre de boites/pces à l'heure
D2: =IF(C2="","",VLOOKUP(C2,TabArticles[],2,FALSE)) ->  | I2: =IF(C2="","",VLOOKUP(C2,TabArticles[],3,FALSE)) ->  | J2: =IF(C2="","",VLOOKUP(C2,TabArticles[],4,FALSE)) ->  | K2: =IF(C2="","",VLOOKUP(C2,TabArticles[],5,FALSE)) ->  | L2: =IF(C2="","",VLOOKUP(C2,TabArticles[],6,FALSE)) ->  | M2: =IF(C2="","",VLOOKUP(C2,TabArticles[],7,FALSE)) -> 

Sheet Utilisateur_10
A1: DATE | B1: PRENOM | C1: PIECE | D1: DESIGNATION | E1: LOT | F1: HEURE debut | G1: heure fin | H1: Nbre de pièces finies | I1: temps de travail en secondes | J1: + 25% temps | K1: temps de travail en minutes | L1: Nbre de boites/pces pour 15 minutes | M1: Nbre de boites/pces à l'heure
A2: 2019-01-23 | B2: utilisateur 10 | D2: =IF(C2="","",VLOOKUP(C2,TabArticles[],2,FALSE)) ->  | G2: 21:58:52 | I2: =IF(C2="","",VLOOKUP(C2,TabArticles[],3,FALSE)) ->  | J2: =IF(C2="","",VLOOKUP(C2,TabArticles[],4,FALSE)) ->  | K2: =IF(C2="","",VLOOKUP(C2,TabArticles[],5,FALSE)) ->  | L2: =IF(C2="","",VLOOKUP(C2,TabArticles[],6,FALSE)) ->  | M2: =IF(C2="","",VLOOKUP(C2,TabArticles[],7,FALSE)) -> 
